[Event "Torneo Nuevo Centro. Jornada 10"]
[Site "Chess.com"]
[Date "2020.08.21"]
[Round "9"]
[White "Fitzpatrick Dimas  , Andrew "]
[Black "Valero Martinez, Óscar"]
[Result "0-1"]
[WhiteElo "1018"]
[BlackElo "1070"]
[TimeControl "180+2"]
[EndTime "12:10:23 PDT"]
[Termination "Victoria de Oscar12000 por tiempo"]

1. Nf3 {[%clk 0:03:01.9]} 1... Nc6 {[%clk 0:02:55.7]} 2. c4 {[%clk 0:03:01.9]}
2... e5 {[%clk 0:02:56.3]} 3. d4 {[%clk 0:02:51.1]} 3... Nf6 {[%clk 0:02:58.2]}
4. c5 {[%clk 0:02:50.4]} 4... exd4 {[%clk 0:02:47]} 5. Nxd4 {[%clk 0:02:49.1]}
5... Bxc5 {[%clk 0:02:43]} 6. Be3 {[%clk 0:02:48.8]} 6... Bb4+ {[%clk
0:02:35.7]} 7. Nc3 {[%clk 0:02:47.3]} 7... Ne4 {[%clk 0:02:32]} 8. a3 {[%clk
0:02:37.9]} 8... Ba5 {[%clk 0:02:28.5]} 9. b4 {[%clk 0:02:33.8]} 9... Bb6 {[%clk
0:02:27.1]} 10. Nxe4 {[%clk 0:02:32.4]} 10... Qh4 {[%clk 0:02:20.9]} 11. Qd3
{[%clk 0:02:23.1]} 11... d6 {[%clk 0:02:09.3]} 12. Nxc6 {[%clk 0:02:14.4]} 12...
bxc6 {[%clk 0:02:09.9]} 13. Nxd6+ {[%clk 0:02:13.4]} 13... cxd6 {[%clk
0:02:09.4]} 14. Qxd6 {[%clk 0:02:13]} 14... Bxe3 {[%clk 0:02:04]} 15. Qxc6+
{[%clk 0:01:59.5]} 15... Bd7 {[%clk 0:02:00.5]} 16. Qxa8+ {[%clk 0:01:57.5]}
16... Ke7 {[%clk 0:01:56.3]} 17. Qf3 {[%clk 0:01:55.7]} 17... Bd4 {[%clk
0:01:49.6]} 18. g3 {[%clk 0:01:49]} 18... Qg5 {[%clk 0:01:44.3]} 19. Rd1 {[%clk
0:01:41.5]} 19... Bg4 {[%clk 0:01:37.2]} 20. Qf4 {[%clk 0:01:31.6]} 20... Bc3+
{[%clk 0:01:30.2]} 21. Rd2 {[%clk 0:01:26.4]} 21... Qxf4 {[%clk 0:01:31.2]} 22.
gxf4 {[%clk 0:01:25.6]} 22... Bxd2+ {[%clk 0:01:31.5]} 23. Kxd2 {[%clk
0:01:25.5]} 23... Rd8+ {[%clk 0:01:33.4]} 24. Kc3 {[%clk 0:01:21.8]} 24... Kf6
{[%clk 0:01:24.4]} 25. h3 {[%clk 0:01:20.2]} 25... Bf5 {[%clk 0:01:23]} 26. e3
{[%clk 0:01:16.6]} 26... Be4 {[%clk 0:01:23.2]} 27. Rg1 {[%clk 0:01:15.2]} 27...
g6 {[%clk 0:01:22.2]} 28. Rg4 {[%clk 0:01:13.5]} 28... Bf5 {[%clk 0:01:21]} 29.
Rg3 {[%clk 0:01:09.5]} 29... Rd1 {[%clk 0:01:16.4]} 30. Bc4 {[%clk 0:00:54.4]}
30... Rc1+ {[%clk 0:01:15.9]} 31. Kd4 {[%clk 0:00:52.6]} 31... Rd1+ {[%clk
0:01:08]} 32. Kc5 {[%clk 0:00:50.8]} 32... Kg7 {[%clk 0:00:43.4]} 33. f3 {[%clk
0:00:34.7]} 33... Rd7 {[%clk 0:00:37.9]} 34. e4 {[%clk 0:00:33]} 34... Rc7+
{[%clk 0:00:36.8]} 35. Kb5 {[%clk 0:00:31.2]} 35... Bd7+ {[%clk 0:00:37]} 36.
Ka6 {[%clk 0:00:24.6]} 36... Rxc4 {[%clk 0:00:37.2]} 37. Kxa7 {[%clk 0:00:22]}
37... Rc7+ {[%clk 0:00:36.6]} 38. Kb6 {[%clk 0:00:20.6]} 38... Rc6+ {[%clk
0:00:36.4]} 39. Ka5 {[%clk 0:00:19.2]} 39... Be6 {[%clk 0:00:32.3]} 40. f5
{[%clk 0:00:10.4]} 40... Bb3 {[%clk 0:00:31.8]} 0

[Event "Torneo Nuevo Centro. Jornada 10"]
[Site "Chess.com"]
[Date "2020.08.21"]
[Round "9"]
[White "Chernikov, Vladimir"]
[Black "Castellano López, Javier"]
[Result "0-1"]
[WhiteElo "2207"]
[BlackElo "1947"]
[TimeControl "180+2"]
[EndTime "12:10:40 PDT"]
[Termination "Victoria de its_xavi_official por abandono"]

1. c4 {[%clk 0:03:01.9]} 1... g6 {[%clk 0:02:59.5]} 2. g3 {[%clk 0:02:58.1]}
2... Bg7 {[%clk 0:03:00.8]} 3. Bg2 {[%clk 0:03:00]} 3... Nf6 {[%clk 0:03:01.1]}
4. Nc3 {[%clk 0:03:01]} 4... O-O {[%clk 0:03:01.4]} 5. Nf3 {[%clk 0:03:01.6]}
5... c5 {[%clk 0:03:02.7]} 6. O-O {[%clk 0:03:01.4]} 6... Nc6 {[%clk 0:03:04]}
7. b3 {[%clk 0:03:02.2]} 7... d6 {[%clk 0:03:04.7]} 8. Bb2 {[%clk 0:03:03.3]}
8... e5 {[%clk 0:02:57]} 9. d3 {[%clk 0:03:03.4]} 9... Be6 {[%clk 0:02:54.4]}
10. Ng5 {[%clk 0:02:54.2]} 10... Nd7 {[%clk 0:02:53.3]} 11. Nxe6 {[%clk
0:02:53]} 11... fxe6 {[%clk 0:02:55.2]} 12. Bh3 {[%clk 0:02:53.7]} 12... Qe7
{[%clk 0:02:50.6]} 13. e3 {[%clk 0:02:50.9]} 13... a6 {[%clk 0:02:48.3]} 14. Qg4
{[%clk 0:02:49.6]} 14... Rae8 {[%clk 0:02:45.3]} 15. Rad1 {[%clk 0:02:48]} 15...
Nf6 {[%clk 0:02:46.1]} 16. Qe2 {[%clk 0:02:46.3]} 16... d5 {[%clk 0:02:44]} 17.
f4 {[%clk 0:02:30]} 17... d4 {[%clk 0:02:27]} 18. Nb1 {[%clk 0:02:24.9]} 18...
exf4 {[%clk 0:02:23.9]} 19. exf4 {[%clk 0:02:12.5]} 19... e5 {[%clk 0:02:20.6]}
20. Rde1 {[%clk 0:01:50.4]} 20... exf4 {[%clk 0:02:08.4]} 21. Qxe7 {[%clk
0:01:48.1]} 21... Rxe7 {[%clk 0:02:06.5]} 22. Rxe7 {[%clk 0:01:47.7]} 22... Nxe7
{[%clk 0:02:08.4]} 23. Be6+ {[%clk 0:01:36.5]} 23... Kh8 {[%clk 0:02:07.1]} 24.
Rxf4 {[%clk 0:01:35.3]} 24... Bh6 {[%clk 0:01:59.3]} 25. Rf1 {[%clk 0:01:35]}
25... Be3+ {[%clk 0:02:00]} 26. Kg2 {[%clk 0:01:35.3]} 26... Kg7 {[%clk
0:01:58]} 27. Ba3 {[%clk 0:01:32.3]} 27... b6 {[%clk 0:01:54.1]} 28. b4 {[%clk
0:01:33.4]} 28... cxb4 {[%clk 0:01:46.9]} 29. Bxb4 {[%clk 0:01:35.3]} 29... Re8
{[%clk 0:01:34.3]} 30. Bh3 {[%clk 0:01:06.7]} 30... Nc6 {[%clk 0:01:33.3]} 31.
Bd6 {[%clk 0:01:05.4]} 31... Ne5 {[%clk 0:01:28.1]} 32. Rd1 {[%clk 0:01:03.5]}
32... Neg4 {[%clk 0:01:08.9]} 33. Rf1 {[%clk 0:00:41.8]} 33... Bg5 {[%clk
0:01:05.2]} 34. Bxg4 {[%clk 0:00:26.5]} 34... Nxg4 {[%clk 0:01:04.6]} 35. Kh3
{[%clk 0:00:28]} 35... h5 {[%clk 0:01:00.3]} 36. Nd2 {[%clk 0:00:24.1]} 36...
Bxd2 {[%clk 0:00:58]} 37. c5 {[%clk 0:00:21.1]} 37... bxc5 {[%clk 0:00:57.2]}
38. Bxc5 {[%clk 0:00:21.6]} 38... Bc3 {[%clk 0:00:56.5]} 39. a4 {[%clk
0:00:21.5]} 39... Re2 {[%clk 0:00:57.2]} 40. Kh4 {[%clk 0:00:14.9]} 40... Rxh2+
{[%clk 0:00:52.3]} 41. Kg5 {[%clk 0:00:16.1]} 41... Bd2+ {[%clk 0:00:53.7]} 42.
Rf4 {[%clk 0:00:17.1]} 42... Bxf4+ {[%clk 0:00:54.8]} 43. gxf4 {[%clk 0:00:19]}
43... Rd2 {[%clk 0:00:50.1]} 44. Bxd4+ {[%clk 0:00:20.8]} 44... Kf7 {[%clk
0:00:50.6]} 45. f5 {[%clk 0:00:19.8]} 45... gxf5 {[%clk 0:00:50.6]} 46. Kxf5
{[%clk 0:00:21.4]} 46... Rxd3 {[%clk 0:00:51.5]} 47. Bg1 {[%clk 0:00:22.4]}
47... Ra3 {[%clk 0:00:52]} 48. Kg5 {[%clk 0:00:22.6]} 48... Nf6 {[%clk
0:00:51.1]} 49. Kh6 {[%clk 0:00:21.4]} 49... Rxa4 {[%clk 0:00:50.9]} 50. Bf2
{[%clk 0:00:21.7]} 50... h4 {[%clk 0:00:51.1]} 51. Bg1 {[%clk 0:00:20.5]} 51...
h3 {[%clk 0:00:52]} 52. Kg5 {[%clk 0:00:21.7]} 52... Ra1 {[%clk 0:00:49.9]} 53.
Bh2 {[%clk 0:00:22.4]} 53... Ra2 {[%clk 0:00:49.5]} 54. Be5 {[%clk 0:00:24.1]}
54... Rg2+ {[%clk 0:00:50.7]} 55. Kh4 {[%clk 0:00:21.3]} 55... h2 {[%clk
0:00:51.6]} 56. Bxh2 {[%clk 0:00:21.8]} 56... Rxh2+ {[%clk 0:00:52.4]} 57. Kg3
{[%clk 0:00:23.7]} 0

[Event "Torneo Nuevo Centro. Jornada 10"]
[Site "Chess.com"]
[Date "2020.08.21"]
[Round "9"]
[White "Pedros Viudes, Santiago"]
[Black "De Nacimiento Montano, Antonio"]
[Result "1-0"]
[WhiteElo "1931"]
[BlackElo "1849"]
[TimeControl "180+2"]
[EndTime "12:10:42 PDT"]
[Termination "Victoria de ElGatoKamsky por jaque mate"]

1. d4 {[%clk 0:03:01.9]} 1... d5 {[%clk 0:03:00.3]} 2. Nf3 {[%clk 0:03:03.8]}
2... e6 {[%clk 0:03:01.1]} 3. Bf4 {[%clk 0:03:04.9]} 3... Be7 {[%clk 0:03:00.2]}
4. e3 {[%clk 0:03:05]} 4... Nf6 {[%clk 0:03:00.5]} 5. Bd3 {[%clk 0:03:05.3]}
5... O-O {[%clk 0:02:59.7]} 6. Ne5 {[%clk 0:03:03.9]} 6... Nbd7 {[%clk
0:02:53.4]} 7. h4 {[%clk 0:02:56.8]} 7... Ne4 {[%clk 0:02:47.7]} 8. h5 {[%clk
0:02:38.8]} 8... f5 {[%clk 0:02:46.3]} 9. g4 {[%clk 0:02:29.6]} 9... Bh4 {[%clk
0:02:31.5]} 10. Bxe4 {[%clk 0:02:28.2]} 10... dxe4 {[%clk 0:02:29]} 11. Nd2
{[%clk 0:02:17.8]} 11... Nxe5 {[%clk 0:02:27.1]} 12. dxe5 {[%clk 0:02:04.4]}
12... Bg5 {[%clk 0:02:27.7]} 13. Qe2 {[%clk 0:01:56]} 13... Bxf4 {[%clk
0:02:21]} 14. exf4 {[%clk 0:01:57.9]} 14... c6 {[%clk 0:02:18.8]} 15. O-O-O
{[%clk 0:01:56.3]} 15... Qa5 {[%clk 0:02:19.4]} 16. Kb1 {[%clk 0:01:48.9]} 16...
b6 {[%clk 0:02:20.4]} 17. Rdg1 {[%clk 0:01:23.7]} 17... Ba6 {[%clk 0:02:13.5]}
18. Qe3 {[%clk 0:01:21.8]} 18... Kh8 {[%clk 0:01:48.9]} 19. gxf5 {[%clk
0:01:01.5]} 19... exf5 {[%clk 0:01:49.8]} 20. h6 {[%clk 0:00:55.8]} 20... g6
{[%clk 0:01:47.7]} 21. f3 {[%clk 0:00:32.7]} 21... Rad8 {[%clk 0:01:43.2]} 22.
Rh2 {[%clk 0:00:25.9]} 22... exf3 {[%clk 0:01:02.5]} 23. Nxf3 {[%clk 0:00:26.2]}
23... Qd5 {[%clk 0:00:53.7]} 24. Rd2 {[%clk 0:00:18.7]} 24... Qe6 {[%clk
0:00:46.5]} 25. Ng5 {[%clk 0:00:18.4]} 25... Qe7 {[%clk 0:00:27.5]} 26. Rgd1
{[%clk 0:00:16.1]} 26... Rxd2 {[%clk 0:00:24.5]} 27. Rxd2 {[%clk 0:00:18]} 27...
Bc4 {[%clk 0:00:21.7]} 28. e6 {[%clk 0:00:14.9]} 28... Kg8 {[%clk 0:00:15.6]}
29. Rd7 {[%clk 0:00:14.3]} 29... Rd8 {[%clk 0:00:06.3]} 30. Rxe7 {[%clk
0:00:09.2]} 30... Rd1+ {[%clk 0:00:07.3]} 31. Qc1 {[%clk 0:00:10.6]} 31... Rxc1+
{[%clk 0:00:08.9]} 32. Kxc1 {[%clk 0:00:12.4]} 32... Kf8 {[%clk 0:00:09.9]} 33.
Rxh7 {[%clk 0:00:06.9]} 33... a5 {[%clk 0:00:10.1]} 34. e7+ {[%clk 0:00:07.7]}
34... Ke8 {[%clk 0:00:11.6]} 35. Nf3 {[%clk 0:00:06.1]} 35... Bd5 {[%clk
0:00:12.6]} 36. Ne5 {[%clk 0:00:07.3]} 36... c5 {[%clk 0:00:11.9]} 37. Rg7
{[%clk 0:00:07.4]} 37... Bg8 {[%clk 0:00:09.5]} 38. Rxg8+ {[%clk 0:00:07.7]}
38... Kxe7 {[%clk 0:00:10.6]} 39. h7 {[%clk 0:00:09.6]} 39... Kf6 {[%clk
0:00:12.2]} 40. h8=Q+ {[%clk 0:00:10.3]} 40... Ke6 {[%clk 0:00:13.1]} 41. Rxg6+
{[%clk 0:00:11.4]} 41... Kd5 {[%clk 0:00:14.5]} 42. Qd8+ {[%clk 0:00:12]} 42...
Ke4 {[%clk 0:00:15.9]} 43. Qd3+ {[%clk 0:00:12.6]} 43... Kxf4 {[%clk 0:00:16.6]}
44. Rf6 {[%clk 0:00:13.6]} 44... c4 {[%clk 0:00:14.7]} 45. Rxf5# {[%clk
0:00:15.5]} 1

[Event "Torneo Nuevo Centro. Jornada 10"]
[Site "Chess.com"]
[Date "2020.08.21"]
[Round "9"]
[White "Hernández Tomás, Efrén"]
[Black "Alvarez Usina, Jordi"]
[Result "0-1"]
[WhiteElo "1100"]
[BlackElo "1269"]
[TimeControl "180+2"]
[EndTime "12:10:47 PDT"]
[Termination "Victoria de jordi_alvarez por abandono"]

1. e4 {[%clk 0:03:01.9]} 1... e5 {[%clk 0:02:59.8]} 2. Nf3 {[%clk 0:03:03]} 2...
Nf6 {[%clk 0:02:59.6]} 3. Nxe5 {[%clk 0:03:00.4]} 3... Bc5 {[%clk 0:02:57.4]} 4.
Bc4 {[%clk 0:02:57.4]} 4... Nxe4 {[%clk 0:02:40.8]} 5. Nxf7 {[%clk 0:02:46.4]}
5... Nxf2 {[%clk 0:02:36.9]} 6. Nxd8 {[%clk 0:02:42.4]} 6... Nxd1 {[%clk
0:02:37]} 7. Nf7 {[%clk 0:02:39.4]} 7... Nf2 {[%clk 0:02:25.1]} 8. Nxh8 {[%clk
0:02:36.3]} 8... Nxh1 {[%clk 0:02:25.2]} 9. Nc3 {[%clk 0:02:28.5]} 9... d6
{[%clk 0:02:23.2]} 10. Nd5 {[%clk 0:02:25.6]} 10... Bb6 {[%clk 0:02:20.3]} 11.
Nxb6 {[%clk 0:02:19.8]} 11... axb6 {[%clk 0:02:19.5]} 12. d3 {[%clk 0:02:20.3]}
12... Nc6 {[%clk 0:02:17.3]} 13. Bd2 {[%clk 0:02:20.2]} 13... Bg4 {[%clk
0:02:06.3]} 14. Be3 {[%clk 0:02:17.3]} 14... Ke7 {[%clk 0:02:02.4]} 15. Nf7
{[%clk 0:02:16.5]} 15... Re8 {[%clk 0:01:51.1]} 16. h3 {[%clk 0:02:10.8]} 16...
Bh5 {[%clk 0:01:45.4]} 17. Ng5 {[%clk 0:02:06.3]} 17... Kf6 {[%clk 0:01:40]} 18.
Kd2 {[%clk 0:01:52.3]} 18... Ng3 {[%clk 0:01:33.6]} 19. Nxh7+ {[%clk 0:01:48.9]}
19... Kg6 {[%clk 0:01:11]} 20. Ng5 {[%clk 0:01:44]} 20... Rf8 {[%clk 0:00:48.7]}
21. Bf7+ {[%clk 0:01:37.2]} 21... Rxf7 {[%clk 0:00:29.3]} 22. Nxf7 {[%clk
0:01:37.3]} 22... Kxf7 {[%clk 0:00:30.1]} 23. Bf4 {[%clk 0:01:35.8]} 23... Nf5
{[%clk 0:00:27.7]} 24. g4 {[%clk 0:01:31.7]} 24... Bxg4 {[%clk 0:00:22.5]} 25.
hxg4 {[%clk 0:01:31.2]} 25... Nfd4 {[%clk 0:00:22.6]} 26. Be3 {[%clk 0:01:28.3]}
26... Kg6 {[%clk 0:00:20.8]} 27. Bxd4 {[%clk 0:01:26.9]} 27... Nxd4 {[%clk
0:00:20.7]} 28. c3 {[%clk 0:01:27.5]} 28... Nf3+ {[%clk 0:00:20.6]} 29. Ke3
{[%clk 0:01:26.8]} 29... Ne5 {[%clk 0:00:20.5]} 30. Rg1 {[%clk 0:01:16.7]} 30...
Kg5 {[%clk 0:00:16.3]} 31. b3 {[%clk 0:01:14.9]} 31... c5 {[%clk 0:00:15.2]} 32.
d4 {[%clk 0:01:15]} 32... cxd4+ {[%clk 0:00:15.6]} 33. cxd4 {[%clk 0:01:14.3]}
33... Nc6 {[%clk 0:00:15.8]} 34. d5 {[%clk 0:01:14.5]} 34... Nb4 {[%clk
0:00:15.7]} 35. a3 {[%clk 0:01:07.6]} 35... Nxd5+ {[%clk 0:00:15.4]} 36. Ke4
{[%clk 0:01:05.7]} 36... Nc3+ {[%clk 0:00:15.4]} 37. Kd3 {[%clk 0:01:01.4]}
37... Nb5 {[%clk 0:00:14.1]} 38. a4 {[%clk 0:00:59.9]} 38... Nc7 {[%clk
0:00:12.5]} 39. Rc1 {[%clk 0:00:59.8]} 39... Nd5 {[%clk 0:00:10.3]} 40. Kd4
{[%clk 0:00:49.9]} 40... Nf4 {[%clk 0:00:04.3]} 41. Rc7 {[%clk 0:00:48.6]} 41...
Ne6+ {[%clk 0:00:02.8]} 42. Kd5 {[%clk 0:00:46.7]} 42... Nxc7+ {[%clk
0:00:03.6]} 43. Kxd6 {[%clk 0:00:47.4]} 43... Na6 {[%clk 0:00:03.6]} 44. Kd5
{[%clk 0:00:42.7]} 44... Kxg4 {[%clk 0:00:04.6]} 45. Ke5 {[%clk 0:00:42.8]}
45... g5 {[%clk 0:00:03.2]} 46. Ke4 {[%clk 0:00:43.3]} 46... Kg3 {[%clk
0:00:04.3]} 47. Ke3 {[%clk 0:00:43.9]} 47... g4 {[%clk 0:00:03.9]} 48. Ke2
{[%clk 0:00:44.7]} 48... Kh2 {[%clk 0:00:04]} 49. Kf1 {[%clk 0:00:45.3]} 49...
g3 {[%clk 0:00:04.7]} 50. b4 {[%clk 0:00:45]} 50... g2+ {[%clk 0:00:06.6]} 51.
Kf2 {[%clk 0:00:44.5]} 51... g1=Q+ {[%clk 0:00:06.3]} 0

[Event "Torneo Nuevo Centro. Jornada 10"]
[Site "Chess.com"]
[Date "2020.08.21"]
[Round "9"]
[White "Bosch Jordà, Ricard"]
[Black "Zamora Soler, Raul"]
[Result "1/2-1/2"]
[WhiteElo "1937"]
[BlackElo "1858"]
[TimeControl "180+2"]
[EndTime "12:10:54 PDT"]
[Termination "Partida en tablas por material insuficiente"]

1. e4 {[%clk 0:03:01.9]} 1... c5 {[%clk 0:02:59.3]} 2. Nf3 {[%clk 0:03:01.2]}
2... Nc6 {[%clk 0:02:59.4]} 3. d4 {[%clk 0:03:02.7]} 3... cxd4 {[%clk
0:02:58.6]} 4. Nxd4 {[%clk 0:03:04.6]} 4... Nf6 {[%clk 0:02:59.1]} 5. Nc3 {[%clk
0:03:04.7]} 5... e6 {[%clk 0:02:59.7]} 6. g3 {[%clk 0:03:03.3]} 6... Bb4 {[%clk
0:02:58.9]} 7. Bg2 {[%clk 0:03:02.6]} 7... O-O {[%clk 0:02:58.3]} 8. O-O {[%clk
0:03:03.7]} 8... Bxc3 {[%clk 0:02:57.7]} 9. bxc3 {[%clk 0:03:04.4]} 9... d5
{[%clk 0:02:58.5]} 10. exd5 {[%clk 0:03:03.3]} 10... Nxd5 {[%clk 0:02:52.3]} 11.
Nxc6 {[%clk 0:03:02.9]} 11... bxc6 {[%clk 0:02:52.6]} 12. Ba3 {[%clk 0:03:02.4]}
12... Re8 {[%clk 0:02:52.6]} 13. c4 {[%clk 0:03:03.4]} 13... Nc3 {[%clk
0:02:28.6]} 14. Qxd8 {[%clk 0:02:12.5]} 14... Rxd8 {[%clk 0:02:27.4]} 15. Bxc6
{[%clk 0:02:06.8]} 15... Ne2+ {[%clk 0:02:26]} 16. Kh1 {[%clk 0:02:03.8]} 16...
Rb8 {[%clk 0:02:26.6]} 17. Rad1 {[%clk 0:01:39.6]} 17... Ba6 {[%clk 0:02:25.1]}
18. Bb5 {[%clk 0:01:24.8]} 18... Bxb5 {[%clk 0:02:20.7]} 19. cxb5 {[%clk
0:01:24.9]} 19... Nc3 {[%clk 0:02:18.2]} 20. Rxd8+ {[%clk 0:01:15.8]} 20... Rxd8
{[%clk 0:02:18.2]} 21. Bb4 {[%clk 0:00:55.6]} 21... Nxb5 {[%clk 0:02:16.6]} 22.
c4 {[%clk 0:00:54.8]} 22... Nd4 {[%clk 0:02:12.8]} 23. Rd1 {[%clk 0:00:51.5]}
23... Nc6 {[%clk 0:02:13.1]} 24. Rxd8+ {[%clk 0:00:49.9]} 24... Nxd8 {[%clk
0:02:13.8]} 25. Kg2 {[%clk 0:00:51.3]} 25... Nc6 {[%clk 0:02:13.5]} 26. Bd6
{[%clk 0:00:42.6]} 26... f5 {[%clk 0:02:13]} 27. Kf3 {[%clk 0:00:41.6]} 27...
Kf7 {[%clk 0:02:07.2]} 28. Ke3 {[%clk 0:00:41.3]} 28... e5 {[%clk 0:02:07.7]}
29. Kd3 {[%clk 0:00:38.4]} 29... Ke6 {[%clk 0:02:07.4]} 30. c5 {[%clk
0:00:37.4]} 30... Kd5 {[%clk 0:02:07.7]} 31. h4 {[%clk 0:00:29]} 31... g6 {[%clk
0:01:57.5]} 32. Kc3 {[%clk 0:00:27.4]} 32... Nd4 {[%clk 0:01:56]} 33. Kb4 {[%clk
0:00:24.5]} 33... Nc6+ {[%clk 0:01:42.3]} 34. Kb5 {[%clk 0:00:24.9]} 34... e4
{[%clk 0:01:41.5]} 35. a4 {[%clk 0:00:20]} 35... Nd4+ {[%clk 0:01:35.5]} 36. Ka6
{[%clk 0:00:20.6]} 36... Nc6 {[%clk 0:01:33.3]} 37. Kb7 {[%clk 0:00:15.3]} 37...
h6 {[%clk 0:01:24.6]} 38. Kc7 {[%clk 0:00:14.2]} 38... g5 {[%clk 0:01:24.3]} 39.
hxg5 {[%clk 0:00:14.6]} 39... hxg5 {[%clk 0:01:22.2]} 40. Kd7 {[%clk 0:00:14.8]}
40... f4 {[%clk 0:01:22.6]} 41. gxf4 {[%clk 0:00:15.9]} 41... gxf4 {[%clk
0:01:23.1]} 42. Bxf4 {[%clk 0:00:16.5]} 42... Kxc5 {[%clk 0:01:20.8]} 43. Be3+
{[%clk 0:00:17.5]} 43... Kd5 {[%clk 0:01:20.5]} 44. Kc7 {[%clk 0:00:15]} 44...
Ne5 {[%clk 0:00:54.4]} 45. Bxa7 {[%clk 0:00:12.4]} 45... Nc4 {[%clk 0:00:47.9]}
46. Bb6 {[%clk 0:00:11.1]} 46... e3 {[%clk 0:00:38.7]} 47. fxe3 {[%clk
0:00:09.7]} 47... Ke4 {[%clk 0:00:39.1]} 48. a5 {[%clk 0:00:09.8]} 48... Nxa5
{[%clk 0:00:39.9]} 49. Bxa5 {[%clk 0:00:02.9]} 49... Kxe3 {[%clk 0:00:38.7]}
1/2-1

[Event "Torneo Nuevo Centro. Jornada 10"]
[Site "Chess.com"]
[Date "2020.08.21"]
[Round "9"]
[White "Conon, Catalin"]
[Black "Valmaña Cantó, Jaime"]
[Result "0-1"]
[WhiteElo "1944"]
[BlackElo "2359"]
[TimeControl "180+2"]
[EndTime "12:11:06 PDT"]
[Termination "Victoria de barberbirborbur por jaque mate"]

1. e4 {[%clk 0:03:01.9]} 1... e6 {[%clk 0:03:00.3]} 2. d4 {[%clk 0:03:02.7]}
2... d5 {[%clk 0:03:00]} 3. Bd3 {[%clk 0:03:03.8]} 3... c5 {[%clk 0:02:52.1]} 4.
exd5 {[%clk 0:03:03]} 4... exd5 {[%clk 0:02:54]} 5. Nf3 {[%clk 0:03:03.8]} 5...
c4 {[%clk 0:02:50.3]} 6. Be2 {[%clk 0:03:04.4]} 6... Nc6 {[%clk 0:02:49.9]} 7.
O-O {[%clk 0:03:05.3]} 7... Nf6 {[%clk 0:02:51.2]} 8. b3 {[%clk 0:03:06.3]} 8...
cxb3 {[%clk 0:02:51.3]} 9. axb3 {[%clk 0:03:08.2]} 9... Bd6 {[%clk 0:02:50.3]}
10. Bb2 {[%clk 0:03:08.7]} 10... O-O {[%clk 0:02:50.9]} 11. c4 {[%clk
0:03:09.5]} 11... Bf5 {[%clk 0:02:48.7]} 12. Nc3 {[%clk 0:03:10.2]} 12... Nb4
{[%clk 0:02:49.2]} 13. Rc1 {[%clk 0:03:10]} 13... Re8 {[%clk 0:02:47.2]} 14. Re1
{[%clk 0:02:41.8]} 14... h6 {[%clk 0:02:43.4]} 15. c5 {[%clk 0:02:11.1]} 15...
Bf4 {[%clk 0:02:41.8]} 16. Nd2 {[%clk 0:02:06.8]} 16... Nd3 {[%clk 0:02:33.7]}
17. Bxd3 {[%clk 0:02:06.7]} 17... Bxd3 {[%clk 0:02:34]} 18. Rxe8+ {[%clk
0:02:07.3]} 18... Qxe8 {[%clk 0:02:34.3]} 19. Ra1 {[%clk 0:01:42.3]} 19... Bg6
{[%clk 0:02:24.7]} 20. Nf3 {[%clk 0:01:41.7]} 20... a6 {[%clk 0:02:20.4]} 21.
Qe1 {[%clk 0:01:27.8]} 21... Qxe1+ {[%clk 0:02:10.5]} 22. Rxe1 {[%clk
0:01:29.7]} 22... Kf8 {[%clk 0:02:01.7]} 23. Na4 {[%clk 0:01:30.6]} 23... Re8
{[%clk 0:01:59.7]} 24. Rxe8+ {[%clk 0:01:20.3]} 24... Kxe8 {[%clk 0:02:01.6]}
25. Kf1 {[%clk 0:01:22.1]} 25... Bc2 {[%clk 0:02:00]} 26. Nb6 {[%clk 0:01:01]}
26... Bxb3 {[%clk 0:01:57.7]} 27. Ke2 {[%clk 0:00:59.7]} 27... Nd7 {[%clk
0:01:52.6]} 28. Ba3 {[%clk 0:00:23.9]} 28... Nxb6 {[%clk 0:01:50.6]} 29. cxb6
{[%clk 0:00:25.8]} 29... Bc4+ {[%clk 0:01:51.4]} 30. Ke1 {[%clk 0:00:26.4]}
30... f6 {[%clk 0:01:47.7]} 31. Nh4 {[%clk 0:00:23.4]} 31... Bd3 {[%clk
0:01:44.6]} 32. g3 {[%clk 0:00:17.8]} 32... Bb8 {[%clk 0:01:40.6]} 33. Kd2
{[%clk 0:00:15]} 33... Bh7 {[%clk 0:01:42.1]} 34. Kc3 {[%clk 0:00:05.5]} 34...
h5 {[%clk 0:01:40.2]} 35. Ng2 {[%clk 0:00:06.4]} 35... g5 {[%clk 0:01:37.9]} 36.
f3 {[%clk 0:00:05.3]} 36... Kd7 {[%clk 0:01:36.4]} 37. Ne3 {[%clk 0:00:06.6]}
37... Kc6 {[%clk 0:01:38.1]} 38. Bc5 {[%clk 0:00:07.3]} 38... Bg6 {[%clk
0:01:35.8]} 39. Nd1 {[%clk 0:00:07.9]} 39... h4 {[%clk 0:01:33.5]} 40. gxh4
{[%clk 0:00:08.1]} 40... gxh4 {[%clk 0:01:33.5]} 41. Nf2 {[%clk 0:00:10]} 41...
Bxh2 {[%clk 0:01:31.8]} 42. Ng4 {[%clk 0:00:11.3]} 42... Bg3 {[%clk 0:01:29.4]}
43. Nxf6 {[%clk 0:00:07]} 43... h3 {[%clk 0:01:30.7]} 44. Ng4 {[%clk 0:00:08.5]}
44... h2 {[%clk 0:01:31.6]} 45. Nxh2 {[%clk 0:00:10.1]} 45... Bxh2 {[%clk
0:01:32.8]} 46. Kb4 {[%clk 0:00:12]} 46... Bf4 {[%clk 0:01:29.9]} 47. Ka5 {[%clk
0:00:11.3]} 47... Bh5 {[%clk 0:01:30.9]} 48. Kb4 {[%clk 0:00:10.9]} 48... Bxf3
{[%clk 0:01:32.2]} 49. Kc3 {[%clk 0:00:12.2]} 49... Kb5 {[%clk 0:01:28.8]} 50.
Kd3 {[%clk 0:00:12.3]} 50... a5 {[%clk 0:01:27.8]} 51. Kc3 {[%clk 0:00:13.5]}
51... Be2 {[%clk 0:01:26.9]} 52. Kb3 {[%clk 0:00:14]} 52... a4+ {[%clk
0:01:27.3]} 53. Ka3 {[%clk 0:00:15]} 53... Bc1+ {[%clk 0:01:28.8]} 54. Ka2
{[%clk 0:00:15.8]} 54... Kc4 {[%clk 0:01:26.3]} 55. Kb1 {[%clk 0:00:15.9]} 55...
Bd2 {[%clk 0:01:26.5]} 56. Ka2 {[%clk 0:00:17]} 56... Bb4 {[%clk 0:01:25.7]} 57.
Kb2 {[%clk 0:00:10.5]} 57... Bxc5 {[%clk 0:01:26]} 58. dxc5 {[%clk 0:00:10.9]}
58... Kxc5 {[%clk 0:01:27.4]} 59. Ka3 {[%clk 0:00:12.7]} 59... Bd1 {[%clk
0:01:26.9]} 60. Kb2 {[%clk 0:00:13.8]} 60... Kxb6 {[%clk 0:01:28.2]} 61. Kc3
{[%clk 0:00:15.2]} 61... Ka5 {[%clk 0:01:29.5]} 62. Kd2 {[%clk 0:00:11.9]} 62...
Bb3 {[%clk 0:01:30.8]} 63. Kc3 {[%clk 0:00:13.1]} 63... b5 {[%clk 0:01:31.4]}
64. Kb2 {[%clk 0:00:14.3]} 64... Kb4 {[%clk 0:01:31.1]} 65. Ka1 {[%clk
0:00:16.2]} 65... Bc4 {[%clk 0:01:31.8]} 66. Kb2 {[%clk 0:00:18.1]} 66... a3+
{[%clk 0:01:32.4]} 67. Ka1 {[%clk 0:00:19.6]} 67... Kc3 {[%clk 0:01:32.9]} 68.
Kb1 {[%clk 0:00:21.1]} 68... b4 {[%clk 0:01:33.7]} 69. Ka1 {[%clk 0:00:23]}
69... b3 {[%clk 0:01:34.8]} 70. Kb1 {[%clk 0:00:24.9]} 70... Bd3+ {[%clk
0:01:35.2]} 71. Ka1 {[%clk 0:00:25.1]} 71... b2+ {[%clk 0:01:36.1]} 72. Ka2
{[%clk 0:00:26.6]} 72... Bc4+ {[%clk 0:01:35.6]} 73. Kb1 {[%clk 0:00:27.3]}
73... a2# {[%clk 0:01:35.9]} 0